fUSD/lending_fUSD_20260614
["ID","MTS","AMOUNT","RATE_DAILY","PERIOD"]
[425060301,1781447546000,-5871.97,0.0003041,8]
[425060300,1781447546000,-741.37,0.0003041,8]
[425060299,1781447546000,-500.0,0.0003041,8]
[425060307,1781447546000,-862.64,0.0003041,8]
[425060315,1781447546000,-25000.0,0.000305,2]
[425060317,1781447546000,-12500.0,0.000305,2]
[425060316,1781447546000,-2500.0,0.000305,2]
[425060319,1781447546000,-5529.0,0.000305,5]
[425060306,1781447546000,-1434.77,0.0003041,8]
[425060305,1781447546000,-1401.83,0.0003041,8]
[425060308,1781447546000,-1106.5,0.0003041,8]
[425060328,1781447546000,-1791.15813918,0.00030602,2]
[425060331,1781447546000,-12500.0,0.00030625,2]
[425060325,1781447546000,-653.08737834,0.00030589,7]
[425060323,1781447546000,-381.04338774,0.00030564,2]
[425060318,1781447546000,-22500.0,0.000305,2]
[425060321,1781447546000,-578.8273362,0.00030524,2]
[425060320,1781447546000,-578.8273362,0.00030502,2]
[425060310,1781447546000,-1791.15813918,0.00030457,2]
[425060312,1781447546000,-22500.0,0.000305,2]
[425060311,1781447546000,-2500.0,0.000305,2]
[425060314,1781447546000,-2500.0,0.000305,2]
[425060309,1781447546000,-47439.8850359,0.00030412,2]
[425060313,1781447546000,-1402.89,0.000305,7]
[425060407,1781447547000,-316.7205064,0.00030684,8]
[425060400,1781447547000,-1031.86,0.00030684,8]
[425060397,1781447547000,-524.27,0.00030684,8]
[425060401,1781447547000,-648.16,0.00030684,8]
[425060392,1781447547000,-951.06,0.00030684,8]
[425060396,1781447547000,-553.9,0.00030684,8]
[425060390,1781447547000,-578.78,0.00030684,8]
[425060391,1781447547000,-500.0,0.00030684,8]
[425060389,1781447547000,-926.37,0.00030684,8]
[425060387,1781447547000,-500.0,0.00030684,8]
[425060398,1781447547000,-214.05924345,0.00030684,8]
[425060399,1781447547000,-1121.81,0.00030684,8]
[425060420,1781447547000,-500.0,0.00030684,8]
[425060403,1781447547000,-682.21,0.00030684,8]
[425060405,1781447547000,-500.0,0.00030684,8]
[425060406,1781447547000,-500.0,0.00030684,8]
[425060402,1781447547000,-800.55,0.00030684,8]
[425060409,1781447547000,-500.0,0.00030684,8]
[425060419,1781447547000,-1189.57,0.00030684,8]
[425060410,1781447547000,-1274.35,0.00030684,8]
[425060408,1781447547000,-1400.43,0.00030684,8]
[425060411,1781447547000,-157.02728694,0.00030684,8]
[425060414,1781447547000,-500.0,0.00030684,8]
[425060413,1781447547000,-688.19,0.00030684,8]
[425060388,1781447547000,-514.54,0.00030684,8]
[425060412,1781447547000,-500.0,0.00030684,8]
[425060404,1781447547000,-546.49,0.00030684,8]
[425060386,1781447547000,-1285.32,0.00030684,8]
[425060374,1781447547000,-1007.63,0.00030684,8]
[425060395,1781447547000,-500.0,0.00030684,8]
[425060416,1781447547000,-500.0,0.00030684,8]
[425060360,1781447547000,-542.62,0.00030684,8]
[425060368,1781447547000,-736.33,0.00030684,8]
[425060370,1781447547000,-801.17,0.00030684,8]
[425060371,1781447547000,-1300.69,0.00030684,8]
[425060369,1781447547000,-500.0,0.00030684,8]
[425060362,1781447547000,-500.0,0.00030684,8]
[425060364,1781447547000,-500.0,0.00030684,8]
[425060361,1781447547000,-460.9963622,0.00030684,8]
[425060363,1781447547000,-447.41047334,0.00030684,8]
[425060367,1781447547000,-614.99,0.00030684,8]
[425060366,1781447547000,-685.22,0.00030684,8]
[425060365,1781447547000,-500.0,0.00030684,8]
[425060372,1781447547000,-1200.69,0.00030684,8]
[425060375,1781447547000,-1573.21,0.00030684,8]
[425060373,1781447547000,-985.3,0.00030684,8]
[425060378,1781447547000,-1067.78,0.00030684,8]
[425060380,1781447547000,-500.0,0.00030684,8]
[425060381,1781447547000,-700.76,0.00030684,8]
[425060377,1781447547000,-738.99,0.00030684,8]
[425060382,1781447547000,-500.0,0.00030684,8]
[425060383,1781447547000,-500.0,0.00030684,8]
[425060379,1781447547000,-500.0,0.00030684,8]
[425060376,1781447547000,-500.0,0.00030684,8]
[425060385,1781447547000,-508.34,0.00030684,8]
[425060393,1781447547000,-735.2,0.00030684,8]
[425060384,1781447547000,-1224.99,0.00030684,8]
[425060394,1781447547000,-500.0,0.00030684,8]
[425060417,1781447547000,-500.0,0.00030684,8]
[425060479,1781447547000,-500.0,0.00030684,8]
[425060418,1781447547000,-608.15,0.00030684,8]
[425060456,1781447547000,-1099.99,0.00030684,8]
[425060450,1781447547000,-1037.86,0.00030684,8]
[425060457,1781447547000,-586.53,0.00030684,8]
[425060452,1781447547000,-1207.41,0.00030684,8]
[425060449,1781447547000,-338.45900728,0.00030684,8]
[425060451,1781447547000,-773.85,0.00030684,8]
[425060469,1781447547000,-1132.03,0.00030684,8]
[425060459,1781447547000,-500.0,0.00030684,8]
[425060458,1781447547000,-899.88,0.00030684,8]
[425060460,1781447547000,-671.88,0.00030684,8]
[425060464,1781447547000,-520.02,0.00030684,8]
[425060463,1781447547000,-1398.15,0.00030684,8]
[425060461,1781447547000,-1425.15,0.00030684,8]
[425060466,1781447547000,-500.0,0.00030684,8]
[425060467,1781447547000,-500.0,0.00030684,8]
[425060468,1781447547000,-500.0,0.00030684,8]
[425060462,1781447547000,-1195.63,0.00030684,8]
[425060465,1781447547000,-841.95,0.00030684,8]
[425060470,1781447547000,-554.77,0.00030684,8]
[425060471,1781447547000,-607.25,0.00030684,8]
[425060475,1781447547000,-500.0,0.00030684,8]
[425060472,1781447547000,-500.0,0.00030684,7]
[425060474,1781447547000,-510.28,0.00030684,8]
[425060473,1781447547000,-638.31,0.00030684,8]
[425060476,1781447547000,-500.0,0.00030684,8]
[425060478,1781447547000,-806.88,0.00030684,8]
[425060477,1781447547000,-500.0,0.00030684,8]
[425060453,1781447547000,-766.55,0.00030684,8]
[425060448,1781447547000,-320.19539087,0.00030684,8]
[425060415,1781447547000,-500.0,0.00030684,8]
[425060455,1781447547000,-508.13,0.00030684,8]
[425060447,1781447547000,-500.0,0.00030684,8]
[425060421,1781447547000,-1222.28,0.00030684,8]
[425060431,1781447547000,-500.0,0.00030684,8]
[425060430,1781447547000,-500.0,0.00030684,8]
[425060422,1781447547000,-500.0,0.00030684,8]
[425060432,1781447547000,-500.0,0.00030684,8]
[425060423,1781447547000,-500.0,0.00030684,8]
[425060424,1781447547000,-1452.09,0.00030684,8]
[425060426,1781447547000,-500.0,0.00030684,8]
[425060428,1781447547000,-1053.08,0.00030684,8]
[425060425,1781447547000,-500.0,0.00030684,8]
[425060429,1781447547000,-500.0,0.00030684,8]
[425060442,1781447547000,-1015.25,0.00030684,8]
[425060427,1781447547000,-672.85,0.00030684,8]
[425060433,1781447547000,-500.0,0.00030684,8]
[425060435,1781447547000,-532.02,0.00030684,8]
[425060446,1781447547000,-500.0,0.00030684,8]
[425060443,1781447547000,-664.01,0.00030684,8]
[425060441,1781447547000,-500.0,0.00030684,8]
[425060437,1781447547000,-500.0,0.00030684,8]
[425060439,1781447547000,-500.0,0.00030684,8]
[425060434,1781447547000,-1281.05,0.00030684,8]
[425060454,1781447547000,-543.29510417,0.00030684,8]
[425060445,1781447547000,-1047.49,0.00030684,8]
[425060436,1781447547000,-500.0,0.00030684,8]
[425060440,1781447547000,-1604.32,0.00030684,8]
[425060438,1781447547000,-500.0,0.00030684,8]
[425060444,1781447547000,-174.72115967,0.00030684,8]
[425060521,1781447548000,-151.0,0.00030684,7]
[425060527,1781447548000,-151.000008,0.00030684,7]
[425060518,1781447548000,-151.0,0.00030684,7]
[425060520,1781447548000,-151.0,0.00030684,7]
[425060519,1781447548000,-151.0,0.00030684,7]
[425060515,1781447548000,-500.0,0.00030684,8]
[425060516,1781447548000,-151.0,0.00030684,7]
[425060517,1781447548000,-151.0,0.00030684,7]
[425060512,1781447548000,-500.0,0.00030684,8]
[425060514,1781447548000,-689.06,0.00030684,8]
[425060524,1781447548000,-500.0,0.00030684,8]
[425060506,1781447548000,-1022.53,0.00030684,8]
[425060523,1781447548000,-723.54,0.00030684,8]
[425060541,1781447548000,-1046.11,0.00030684,8]
[425060522,1781447548000,-1746.88,0.00030684,8]
[425060525,1781447548000,-151.0,0.00030684,7]
[425060528,1781447548000,-784.28,0.00030684,8]
[425060529,1781447548000,-872.27,0.00030684,8]
[425060531,1781447548000,-559.91,0.00030684,8]
[425060532,1781447548000,-424.83857809,0.00030684,8]
[425060533,1781447548000,-500.0,0.00030684,8]
[425060530,1781447548000,-500.0,0.00030684,8]
[425060538,1781447548000,-504.6,0.00030684,8]
[425060540,1781447548000,-715.69,0.00030684,8]
[425060539,1781447548000,-533.2,0.00030684,8]
[425060537,1781447548000,-623.88,0.00030684,8]
[425060511,1781447548000,-500.0,0.00030684,8]
[425060526,1781447548000,-151.0,0.00030684,7]
[425060513,1781447548000,-1254.7,0.00030684,8]
[425060495,1781447548000,-500.0,0.00030684,8]
[425060510,1781447548000,-573.76,0.00030684,8]
[425060535,1781447548000,-500.0,0.00030684,8]
[425060486,1781447548000,-500.0,0.00030684,8]
[425060484,1781447548000,-866.85,0.00030684,8]
[425060483,1781447548000,-2153.84,0.00030684,8]
[425060481,1781447548000,-544.6,0.00030684,8]
[425060485,1781447548000,-500.0,0.00030684,8]
[425060488,1781447548000,-151.0,0.00030684,7]
[425060491,1781447548000,-238.24622,0.00030684,7]
[425060490,1781447548000,-151.0,0.00030684,7]
[425060489,1781447548000,-151.0,0.00030684,7]
[425060487,1781447548000,-500.0,0.00030684,8]
[425060480,1781447548000,-853.99,0.00030684,8]
[425060503,1781447548000,-500.0,0.00030684,8]
[425060504,1781447548000,-500.0,0.00030684,8]
[425060493,1781447548000,-500.0,0.00030684,8]
[425060494,1781447548000,-556.37,0.00030684,8]
[425060492,1781447548000,-815.68,0.00030684,8]
[425060497,1781447548000,-534.02,0.00030684,8]
[425060496,1781447548000,-790.09,0.00030684,8]
[425060499,1781447548000,-520.69,0.00030684,8]
[425060500,1781447548000,-500.0,0.00030684,8]
[425060501,1781447548000,-648.3,0.00030684,8]
[425060502,1781447548000,-500.0,0.00030684,8]
[425060498,1781447548000,-500.0,0.00030684,8]
[425060505,1781447548000,-500.0,0.00030684,8]
[425060507,1781447548000,-543.72,0.00030684,8]
[425060508,1781447548000,-597.42,0.00030684,8]
[425060509,1781447548000,-1193.0,0.00030684,8]
[425060482,1781447548000,-500.0,0.00030684,8]
[425060536,1781447548000,-639.31,0.00030684,8]
[425060543,1781447548000,-193.71176317,0.00030684,8]
[425060575,1781447548000,-1236.08,0.00030684,8]
[425060571,1781447548000,-500.0,0.00030684,8]
[425060569,1781447548000,-1019.53,0.00030684,8]
[425060573,1781447548000,-606.2,0.00030684,8]
[425060578,1781447548000,-1086.15,0.00030684,8]
[425060588,1781447548000,-1214.87,0.00030684,8]
[425060582,1781447548000,-752.56,0.00030684,8]
[425060583,1781447548000,-500.0,0.00030684,8]
[425060584,1781447548000,-500.0,0.00030684,8]
[425060585,1781447548000,-500.0,0.00030684,8]
[425060581,1781447548000,-1794.38,0.00030684,8]
[425060579,1781447548000,-500.0,0.00030684,8]
[425060587,1781447548000,-1362.07,0.00030684,8]
[425060589,1781447548000,-712.15,0.00030684,8]
[425060586,1781447548000,-500.0,0.00030684,8]
[425060599,1781447548000,-500.0,0.00030684,8]
[425060591,1781447548000,-500.0,0.00030684,8]
[425060600,1781447548000,-836.13,0.00030684,8]
[425060598,1781447548000,-500.0,0.00030684,8]
[425060596,1781447548000,-1530.48,0.00030684,8]
[425060594,1781447548000,-556.38,0.00030684,8]
[425060590,1781447548000,-658.12,0.00030684,8]
[425060593,1781447548000,-710.6,0.00030684,8]
[425060592,1781447548000,-500.0,0.00030684,8]
[425060595,1781447548000,-932.78,0.00030684,8]
[425060597,1781447548000,-500.0,0.00030684,8]
[425060534,1781447548000,-500.0,0.00030684,8]
[425060566,1781447548000,-577.76,0.00030684,8]
[425060568,1781447548000,-681.48,0.00030684,8]
[425060580,1781447548000,-500.0,0.00030684,8]
[425060567,1781447548000,-638.67,0.00030684,8]
[425060576,1781447548000,-500.0,0.00030684,8]
[425060553,1781447548000,-611.86,0.00030684,8]
[425060552,1781447548000,-536.09,0.00030684,8]
[425060542,1781447548000,-892.45,0.00030684,8]
[425060548,1781447548000,-714.38,0.00030684,8]
[425060544,1781447548000,-566.53,0.00030684,8]
[425060546,1781447548000,-500.0,0.00030684,8]
[425060545,1781447548000,-500.0,0.00030684,8]
[425060547,1781447548000,-500.0,0.00030684,8]
[425060549,1781447548000,-500.0,0.00030684,8]
[425060550,1781447548000,-529.52,0.00030684,8]
[425060554,1781447548000,-500.0,0.00030684,8]
[425060565,1781447548000,-694.97,0.00030684,8]
[425060559,1781447548000,-500.0,0.00030684,8]
[425060551,1781447548000,-1199.94,0.00030684,8]
[425060557,1781447548000,-500.0,0.00030684,8]
[425060558,1781447548000,-1285.7,0.00030684,8]
[425060572,1781447548000,-770.14,0.00030684,8]
[425060574,1781447548000,-648.66,0.00030684,8]
[425060577,1781447548000,-500.0,0.00030684,8]
[425060560,1781447548000,-694.6,0.00030684,8]
[425060562,1781447548000,-500.0,0.00030684,8]
[425060570,1781447548000,-500.0,0.00030684,8]
[425060564,1781447548000,-500.0,0.00030684,8]
[425060563,1781447548000,-500.0,0.00030684,8]
[425060556,1781447548000,-1992.83,0.00030684,8]
[425060555,1781447548000,-1220.66,0.00030684,8]
[425060561,1781447548000,-500.0,0.00030684,8]
[425060639,1781447549000,-642.31,0.00030684,8]
[425060641,1781447549000,-500.0,0.00030684,8]
[425060651,1781447549000,-500.0,0.00030684,8]
[425060631,1781447549000,-663.09,0.00030684,8]
[425060650,1781447549000,-500.0,0.00030684,8]
[425060632,1781447549000,-500.0,0.00030684,8]
[425060634,1781447549000,-675.87,0.00030684,8]
[425060635,1781447549000,-500.0,0.00030684,8]
[425060633,1781447549000,-944.34,0.00030684,8]
[425060638,1781447549000,-500.0,0.00030684,8]
[425060643,1781447549000,-631.21,0.00030684,8]
[425060640,1781447549000,-702.19,0.00030684,8]
[425060642,1781447549000,-845.18,0.00030684,8]
[425060647,1781447549000,-815.38,0.00030684,8]
[425060644,1781447549000,-500.0,0.00030684,8]
[425060645,1781447549000,-500.0,0.00030684,8]
[425060648,1781447549000,-500.0,0.00030684,8]
[425060649,1781447549000,-500.0,0.00030684,8]
[425060652,1781447549000,-1150.58,0.00030684,8]
[425060656,1781447549000,-468.3389513,0.00030684,8]
[425060653,1781447549000,-500.0,0.00030684,8]
[425060655,1781447549000,-532.23,0.00030684,8]
[425060654,1781447549000,-500.0,0.00030684,8]
[425060659,1781447549000,-500.0,0.00030684,8]
[425060660,1781447549000,-648.15,0.00030684,8]
[425060636,1781447549000,-1042.52,0.00030684,8]
[425060646,1781447549000,-729.66,0.00030684,8]
[425060637,1781447549000,-881.04,0.00030684,8]
[425060657,1781447549000,-657.48,0.00030684,8]
[425060629,1781447549000,-657.3,0.00030684,8]
[425060601,1781447549000,-500.0,0.00030684,8]
[425060602,1781447549000,-500.0,0.00030684,8]
[425060605,1781447549000,-500.0,0.00030684,8]
[425060607,1781447549000,-987.41,0.00030684,8]
[425060604,1781447549000,-578.24,0.00030684,8]
[425060610,1781447549000,-500.0,0.00030684,8]
[425060603,1781447549000,-1329.36,0.00030684,8]
[425060609,1781447549000,-500.0,0.00030684,8]
[425060613,1781447549000,-500.0,0.00030684,8]
[425060614,1781447549000,-1199.11,0.00030684,8]
[425060606,1781447549000,-500.0,0.00030684,8]
[425060611,1781447549000,-500.0,0.00030684,8]
[425060608,1781447549000,-500.0,0.00030684,8]
[425060612,1781447549000,-747.07,0.00030684,8]
[425060619,1781447549000,-1038.13,0.00030684,8]
[425060620,1781447549000,-519.48,0.00030684,8]
[425060624,1781447549000,-565.44,0.00030684,8]
[425060618,1781447549000,-500.0,0.00030684,8]
[425060623,1781447549000,-597.59,0.00030684,8]
[425060622,1781447549000,-856.87,0.00030684,8]
[425060626,1781447549000,-500.0,0.00030684,8]
[425060625,1781447549000,-346.87984735,0.00030684,8]
[425060621,1781447549000,-500.0,0.00030684,8]
[425060615,1781447549000,-579.71,0.00030684,8]
[425060617,1781447549000,-1016.47,0.00030684,8]
[425060627,1781447549000,-1068.73,0.00030684,8]
[425060628,1781447549000,-500.0,0.00030684,8]
[425060630,1781447549000,-1514.46,0.00030684,8]
[425060658,1781447549000,-564.84,0.00030684,8]
[425060616,1781447549000,-500.0,0.00030684,8]
[425060662,1781447549000,-2000.0,0.00030684,2]
[425060693,1781447549000,-920.43,0.00030684,8]
[425060721,1781447549000,-500.0,0.00030684,8]
[425060698,1781447549000,-500.0,0.00030684,8]
[425060694,1781447549000,-500.0,0.00030684,8]
[425060697,1781447549000,-605.61,0.00030684,8]
[425060695,1781447549000,-509.71,0.00030684,8]
[425060696,1781447549000,-662.85,0.00030684,8]
[425060701,1781447549000,-500.0,0.00030684,8]
[425060702,1781447549000,-500.0,0.00030684,8]
[425060709,1781447549000,-500.0,0.00030684,8]
[425060708,1781447549000,-592.38,0.00030684,8]
[425060711,1781447549000,-558.94,0.00030684,8]
[425060710,1781447549000,-1169.04,0.00030684,8]
[425060707,1781447549000,-500.0,0.00030684,8]
[425060706,1781447549000,-1701.25,0.00030684,8]
[425060704,1781447549000,-500.0,0.00030684,8]
[425060712,1781447549000,-500.0,0.00030684,8]
[425060703,1781447549000,-500.0,0.00030684,8]
[425060705,1781447549000,-674.5,0.00030684,8]
[425060713,1781447549000,-640.0117022,0.00030684,8]
[425060715,1781447549000,-720.7,0.00030684,8]
[425060720,1781447549000,-682.04,0.00030684,8]
[425060717,1781447549000,-500.0,0.00030684,8]
[425060718,1781447549000,-502.0,0.00030684,8]
[425060719,1781447549000,-2238.28,0.00030684,8]
[425060716,1781447549000,-702.01,0.00030684,8]
[425060661,1781447549000,-500.0,0.00030684,8]
[425060692,1781447549000,-500.0,0.00030684,8]
[425060691,1781447549000,-553.44,0.00030684,8]
[425060714,1781447549000,-605.88,0.00030684,8]
[425060688,1781447549000,-540.29,0.00030684,8]
[425060690,1781447549000,-743.01,0.00030684,8]
[425060663,1781447549000,-835.21,0.00030684,8]
[425060665,1781447549000,-500.0,0.00030684,8]
[425060675,1781447549000,-869.12,0.00030684,8]
[425060676,1781447549000,-992.68,0.00030684,8]
[425060669,1781447549000,-500.0,0.00030684,8]
[425060666,1781447549000,-880.78,0.00030684,8]
[425060668,1781447549000,-616.02,0.00030684,8]
[425060667,1781447549000,-500.0,0.00030684,8]
[425060671,1781447549000,-500.0,0.00030684,8]
[425060672,1781447549000,-500.0,0.00030684,8]
[425060670,1781447549000,-3014.18,0.00030684,8]
[425060673,1781447549000,-500.0,0.00030684,8]
[425060674,1781447549000,-633.6002434,0.00030684,8]
[425060664,1781447549000,-500.0,0.00030684,8]
[425060678,1781447549000,-500.0,0.00030684,8]
[425060680,1781447549000,-1539.52,0.00030684,8]
[425060689,1781447549000,-1661.43,0.00030684,8]
[425060700,1781447549000,-2667.75,0.00030684,8]
[425060699,1781447549000,-698.01,0.00030684,8]
[425060681,1781447549000,-500.0,0.00030684,8]
[425060687,1781447549000,-692.78,0.00030684,8]
[425060684,1781447549000,-500.0,0.00030684,8]
[425060682,1781447549000,-500.0,0.00030684,8]
[425060686,1781447549000,-500.0,0.00030684,8]
[425060683,1781447549000,-870.51,0.00030684,8]
[425060677,1781447549000,-1461.98,0.00030684,8]
[425060679,1781447549000,-3250.13,0.00030684,8]
[425060685,1781447549000,-500.0,0.00030684,8]
[425060747,1781447550000,-500.0,0.00030684,8]
[425060744,1781447550000,-500.0,0.00030684,8]
[425060749,1781447550000,-546.64,0.00030684,8]
[425060759,1781447550000,-500.0,0.00030684,8]
[425060753,1781447550000,-940.15,0.00030684,8]
[425060750,1781447550000,-1056.35,0.00030684,8]
[425060760,1781447550000,-618.15544532,0.00030684,8]
[425060751,1781447550000,-500.0,0.00030684,8]
[425060748,1781447550000,-877.23,0.00030684,8]
[425060755,1781447550000,-10759.52,0.00030684,8]
[425060752,1781447550000,-500.0,0.00030684,8]
[425060756,1781447550000,-500.0,0.00030684,8]
[425060754,1781447550000,-500.0,0.00030684,8]
[425060757,1781447550000,-679.83,0.00030684,8]
[425060762,1781447550000,-825.79,0.00030684,8]
[425060772,1781447550000,-3026.85,0.00030684,8]
[425060761,1781447550000,-1116.26,0.00030684,8]
[425060743,1781447550000,-5751.63,0.00030684,8]
[425060763,1781447550000,-500.0,0.00030684,8]
[425060758,1781447550000,-1143.85,0.00030684,8]
[425060745,1781447550000,-385.83712795,0.00030684,8]
[425060735,1781447550000,-543.63,0.00030684,8]
[425060742,1781447550000,-1427.79,0.00030684,8]
[425060770,1781447550000,-500.0,0.00030684,8]
[425060725,1781447550000,-500.0,0.00030684,8]
[425060724,1781447550000,-422.27565207,0.00030684,8]
[425060722,1781447550000,-500.0,0.00030684,8]
[425060723,1781447550000,-966.37,0.00030684,8]
[425060733,1781447550000,-1157.66,0.00030684,8]
[425060729,1781447550000,-580.54,0.00030684,8]
[425060731,1781447550000,-550.82,0.00030684,8]
[425060727,1781447550000,-2017.64,0.00030684,8]
[425060746,1781447550000,-500.0,0.00030684,8]
[425060732,1781447550000,-500.0,0.00030684,8]
[425060726,1781447550000,-2663.08,0.00030684,8]
[425060728,1781447550000,-623.6,0.00030684,8]
[425060736,1781447550000,-500.0,0.00030684,8]
[425060734,1781447550000,-842.22,0.00030684,8]
[425060738,1781447550000,-1675.9,0.00030684,8]
[425060737,1781447550000,-500.0,0.00030684,8]
[425060739,1781447550000,-703.84,0.00030684,8]
[425060740,1781447550000,-500.0,0.00030684,8]
[425060741,1781447550000,-500.0,0.00030684,8]
[425060730,1781447550000,-500.0,0.00030684,8]
[425060765,1781447550000,-704.65,0.00030684,8]
[425060768,1781447550000,-4182.59,0.00030684,8]
[425060766,1781447550000,-1082.98,0.00030684,8]
[425060791,1781447550000,-540.32,0.00030684,8]
[425060793,1781447550000,-4001.43,0.00030684,8]
[425060797,1781447550000,-1023.6,0.00030684,8]
[425060801,1781447550000,-500.0,0.00030684,8]
[425060798,1781447550000,-1407.31,0.00030684,8]
[425060804,1781447550000,-500.0,0.00030684,8]
[425060796,1781447550000,-508.2,0.00030684,8]
[425060800,1781447550000,-1278.35,0.00030684,8]
[425060803,1781447550000,-563.46,0.00030684,8]
[425060787,1781447550000,-610.83,0.00030684,8]
[425060799,1781447550000,-500.0,0.00030684,8]
[425060802,1781447550000,-11664.09,0.00030684,8]
[425060807,1781447550000,-505.16,0.00030684,8]
[425060809,1781447550000,-530.82773404,0.00030684,8]
[425060808,1781447550000,-500.0,0.00030684,8]
[425060810,1781447550000,-500.0,0.00030684,8]
[425060812,1781447550000,-589.03,0.00030684,8]
[425060813,1781447550000,-1296.71,0.00030684,8]
[425060811,1781447550000,-2026.58,0.00030684,8]
[425060764,1781447550000,-626.04,0.00030684,8]
[425060805,1781447550000,-25282.9,0.00030684,8]
[425060790,1781447550000,-528.7,0.00030684,8]
[425060806,1781447550000,-677.78,0.00030684,8]
[425060795,1781447550000,-1000.0,0.00030684,8]
[425060788,1781447550000,-1282.28,0.00030684,8]
[425060771,1781447550000,-500.0,0.00030684,8]
[425060767,1781447550000,-500.0,0.00030684,8]
[425060769,1781447550000,-702.05,0.00030684,8]
[425060773,1781447550000,-500.0,0.00030684,8]
[425060780,1781447550000,-3706.06,0.00030684,8]
[425060781,1781447550000,-500.0,0.00030684,8]
[425060783,1781447550000,-658.84,0.00030684,8]
[425060779,1781447550000,-528.8,0.00030684,8]
[425060774,1781447550000,-500.0,0.00030684,8]
[425060777,1781447550000,-500.0,0.00030684,8]
[425060782,1781447550000,-518.74,0.00030684,8]
[425060784,1781447550000,-500.0,0.00030684,8]
[425060775,1781447550000,-2931.64,0.00030684,8]
[425060778,1781447550000,-742.57,0.00030684,8]
[425060786,1781447550000,-500.0,0.00030684,8]
[425060785,1781447550000,-1682.54,0.00030684,8]
[425060792,1781447550000,-1109.22,0.00030684,8]
[425060794,1781447550000,-1749.66,0.00030684,8]
[425060776,1781447550000,-500.0,0.00030684,8]
[425060789,1781447550000,-636.66,0.00030684,8]
[425060848,1781447551000,-1357.49,0.00030684,8]
[425060853,1781447551000,-839.66,0.00030684,8]
[425060850,1781447551000,-878.66,0.00030684,8]
[425060851,1781447551000,-500.0,0.00030684,8]
[425060842,1781447551000,-1108.18,0.00030684,8]
[425060847,1781447551000,-500.0,0.00030684,8]
[425060849,1781447551000,-500.0,0.00030684,8]
[425060845,1781447551000,-2020.73,0.00030684,8]
[425060844,1781447551000,-500.0,0.00030684,8]
[425060861,1781447551000,-500.0,0.00030684,8]
[425060846,1781447551000,-1129.02,0.00030684,2]
[425060862,1781447551000,-1297.07,0.00030684,8]
[425060866,1781447551000,-1326.3,0.00030684,8]
[425060855,1781447551000,-900.28,0.00030684,8]
[425060856,1781447551000,-822.75,0.00030684,8]
[425060858,1781447551000,-500.0,0.00030684,8]
[425060854,1781447551000,-707.83,0.00030684,8]
[425060859,1781447551000,-500.0,0.00030684,8]
[425060857,1781447551000,-12728.02,0.00030684,8]
[425060860,1781447551000,-2061.13,0.00030684,8]
[425060874,1781447551000,-577.21,0.00030684,8]
[425060863,1781447551000,-649.93,0.00030684,8]